Workbook

Sheet 封面
A1: 2018年部门决算公开报表
A3: 部门名称：西安市碑林区人力资源和社会保障局（汇总）
A4: 保密审查情况：已审查
A5: 部门主要负责人审签情况：已审签

Sheet Sheet2
A1: 目录
A3: 序号 | B3: 报表名称 | C3: 是否空表 | D3: 公开空表理由
A4: 表1 | B4: 2018年部门决算收支总表 | C4: 否
A5: 表2 | B5: 2018年部门决算收入总表 | C5: 否
A6: 表3 | B6: 2018年部门决算支出总表 | C6: 否
A7: 表4 | B7: 2018年部门决算财政拨款收支总表 | C7: 否
A8: 表5 | B8: 2018年部门决算一般公共预算财政拨款支出明细表(按支出功能分类) | C8: 否
A9: 表6 | B9: 2018年部门决算一般公共预算财政拨款基本支出表（按支出经济分类） | C9: 否
A10: 表7 | B10: 2018年部门决算一般公共预算财政拨款“三公”经费及会议费、培训费支出表 | C10: 否
A11: 表8 | B11: 2018年部门决算政府性基金支出表 | C11: 是 | D11: 不涉及
A12: 表9 | B12: 2018年部门决算政府采购决算表 | C12: 否

Sheet PF01 部门决算收支总表
A1: 部门决算收支总表
D2: 01表
A3: 编制单位：西安市碑林区人力资源和社会保障局（汇总） | B3: 2018年 | D3: 单位：万元
A4: 收入 | C4: 支出
A5: 项目 | B5: 决算数 | C5: 项目 | D5: 决算数
A6: 1、财政拨款收入 | B6: =B7 -> 19,071.25 | C6: 1、一般公共服务支出 | D6: 658.58
A7: 其中：一般公共预算财政拨款 | B7: 19,071.25 | C7: 2、外交支出
A8: 政府性基金预算财政拨款 | C8: 3、国防支出
A9: 国有资本经营预算财政拨款 | C9: 4、公共安全支出
A10: 2、上级补助收入 | C10: 5、教育支出
A11: 3、事业收入 | C11: 6、科学技术支出
A12: 其中：纳入财政专户管理的收费 | C12: 7、文化体育与传媒支出
A13: 4、经营收入 | C13: 8、社会保障和就业支出 | D13: 9,307.22
A14: 5、附属单位上缴收入 | C14: 9、医疗卫生与计划生育支出 | D14: 7,684.97
A15: 6、其他收入 | C15: 10、节能环保支出
C16: 11、城乡社区支出
C17: 12、农林水支出 | D17: 37.15
C18: 13、交通运输支出
C19: 14、资源勘探信息等支出
C20: 15、商业服务业等支出
C21: 16、金融支出
C22: 17、援助其他地区支出
C23: 18、国土海洋气象等支出
C24: 19、住房保障支出
C25: 20、油物资储备支出
C26: 21、其他支出
A29: 本年收入合计 | B29: =B6 -> 19,071.25 | C29: 本年支出合计 | D29: =SUM(D6:D27) -> 17,687.92
A30: 用事业基金弥补收支差额 | C30: 结余分配
A31: 年初结转和结余 | B31: 140.69 | C31: 年末结转和结余 | D31: 1,524.01
A33: 收入总计 | B33: =B29+B31 -> 19,211.94 | C33: 支出总计 | D33: =D29+D31 -> 19,211.94
A34: 注：本表反映部门本年度的总收支和年末结转结余情况;报表存在尾数差异因四舍五入造成，可以忽略不计。

Sheet PF02 部门决算收入总表
A1: 部门决算收入总表
K2: 02表
A3: 编制单位：西安市碑林区人力资源和社会保障局（汇总） | G3: 2018年 | K3: 单位：万元
A4: 项目 | E4: 本年收入合计 | F4: 财政拨款收入 | G4: 上级补助收入 | H4: 事业收入 | I4: 经营收入 | J4: 附属单位上缴收入 | K4: 其他收入
A5: 功能分类科目编码 | D5: 科目名称 | K5: 小计
A8: 合计 | D8: 合计 | E8: 19,071.25 | F8: 19,071.25
A9: 201 | D9: 一般公共服务支出 | E9: 658.58 | F9: 658.58
A10: 20113 | D10: 商贸事务 | E10: 658.58 | F10: 658.58
A11: 2011308 | D11: 招商引资 | E11: 658.58 | F11: 658.58
A12: 208 | D12: 社会保障和就业支出 | E12: 10,687.65 | F12: 10,687.65
A13: 20801 | D13: 人力资源和社会保障管理事务 | E13: 3,393.13 | F13: 3,393.13
A14: 2080101 | D14: 行政运行 | E14: 2,147.63 | F14: 2,147.63
A15: 2080102 | D15: 一般行政管理事务 | E15: 500.39 | F15: 500.39
A16: 2080108 | D16: 信息化建设 | E16: 5.00 | F16: 5.00
A17: 2080109 | D17: 社会保险经办机构 | E17: 239.00 | F17: 239.00
A18: 2080112 | D18: 劳动人事争议调解仲裁 | E18: 14.41 | F18: 14.41
A19: 2080199 | D19: 其他人力资源和社会保障管理事务支出 | E19: 486.70 | F19: 486.70
A20: 20802 | D20: 民政管理事务 | E20: 9.76 | F20: 9.76
A21: 2080299 | D21: 其他民政管理事务支出 | E21: 9.76 | F21: 9.76
A22: 20805 | D22: 行政事业单位离退休 | E22: 1,272.21 | F22: 1,272.21
A23: 2080501 | D23: 归口管理的行政单位离退休 | E23: 673.49 | F23: 673.49
A24: 2080502 | D24: 事业单位离退休 | E24: 439.42 | F24: 439.42
A25: 2080505 | D25: 机关事业单位基本养老保险缴费支出 | E25: 125.59 | F25: 125.59
A26: 2080599 | D26: 其他行政事业单位离退休支出 | E26: 33.71 | F26: 33.71
A27: 20807 | D27: 就业补助 | E27: 5,037.87 | F27: 5,037.87
A28: 2080705 | D28: 公益性岗位补贴 | E28: 2,160.87 | F28: 2,160.87
A29: 2080799 | D29: 其他就业补助支出 | E29: 2,877.00 | F29: 2,877.00
A30: 20808 | D30: 抚恤 | E30: 45.03 | F30: 45.03
A31: 2080899 | D31: 其他优抚支出 | E31: 45.03 | F31: 45.03
A32: 20809 | D32: 退役安置 | E32: 49.37 | F32: 49.37
A33: 2080999 | D33: 其他退役安置支出 | E33: 49.37 | F33: 49.37
A34: 20899 | D34: 其他社会保障和就业支出 | E34: 880.29 | F34: 880.29
A35: 2089901 | D35: 其他社会保障和就业支出 | E35: 880.29 | F35: 880.29
A36: 210 | D36: 医疗卫生与计划生育支出 | E36: 7,686.95 | F36: 7,686.95
A37: 21011 | D37: 行政事业单位医疗 | E37: 7,686.95 | F37: 7,686.95
A38: 2101101 | D38: 行政单位医疗 | E38: 1,348.85 | F38: 1,348.85
A39: 2101102 | D39: 事业单位医疗 | E39: 1,280.95 | F39: 1,280.95
A40: 2101103 | D40: 公务员医疗补助 | E40: 5,057.16 | F40: 5,057.16
A41: 213 | D41: 农林水支出 | E41: 38.07 | F41: 38.07
A42: 21301 | D42: 农业 | E42: 25.68 | F42: 25.68
A43: 2130152 | D43: 对高校毕业生到基层任职补助 | E43: 25.68 | F43: 25.68
A44: 21308 | D44: 普惠金融发展支出 | E44: 12.39 | F44: 12.39
A45: 2130899 | D45: 其他普惠金融发展支出 | E45: 12.39 | F45: 12.39
A46: 注：本表反映部门本年度取得的各项收入情况。

Sheet PF03 部门决算支出总表
A1: 部门决算支出总表
J2: 03表
A3: 编制单位：西安市碑林区人力资源和社会保障局（汇总） | F3: 2018年 | J3: 单位：万元
A4: 项目 | E4: 本年支出合计 | F4: 基本支出 | G4: 项目支出 | H4: 上缴上级支出 | I4: 经营支出 | J4: 对附属单位补助支出
A5: 功能分类科目编码 | D5: 科目名称
A8: 合计 | D8: 合计 | E8: 17,687.92 | F8: 10,281.11 | G8: 7,406.81
A9: 201 | D9: 一般公共服务支出 | E9: 658.58 | F9: 0.00 | G9: 658.58
A10: 20113 | D10: 商贸事务 | E10: 658.58 | F10: 0.00 | G10: 658.58
A11: 2011308 | D11: 招商引资 | E11: 658.58 | F11: 0.00 | G11: 658.58
A12: 208 | D12: 社会保障和就业支出 | E12: 9,307.22 | F12: 2,596.14 | G12: 6,711.08
A13: 20801 | D13: 人力资源和社会保障管理事务 | E13: 2,012.70 | F13: 1,357.64 | G13: 655.06
A14: 2080101 | D14: 行政运行 | E14: 747.62 | F14: 747.62 | G14: 0.00
A15: 2080102 | D15: 一般行政管理事务 | E15: 521.17 | F15: 0.00 | G15: 521.17
A16: 2080108 | D16: 信息化建设 | E16: 5.00 | F16: 0.00 | G16: 5.00
A17: 2080109 | D17: 社会保险经办机构 | E17: 239.00 | F17: 124.53 | G17: 114.47
A18: 2080112 | D18: 劳动人事争议调解仲裁 | E18: 14.41 | F18: 0.00 | G18: 14.41
A19: 2080199 | D19: 其他人力资源和社会保障管理事务支出 | E19: 485.50 | F19: 485.50 | G19: 0.00
A20: 20802 | D20: 民政管理事务 | E20: 9.76 | F20: 0.00 | G20: 9.76
A21: 2080299 | D21: 其他民政管理事务支出 | E21: 9.76 | F21: 0.00 | G21: 9.76
A22: 20805 | D22: 行政事业单位离退休 | E22: 1,272.21 | F22: 1,238.50 | G22: 33.71
A23: 2080501 | D23: 归口管理的行政单位离退休 | E23: 673.49 | F23: 673.49 | G23: 0.00
A24: 2080502 | D24: 事业单位离退休 | E24: 439.42 | F24: 439.42 | G24: 0.00
A25: 2080505 | D25: 机关事业单位基本养老保险缴费支出 | E25: 125.59 | F25: 125.59 | G25: 0.00
A26: 2080599 | D26: 其他行政事业单位离退休支出 | E26: 33.71 | F26: 0.00 | G26: 33.71
A27: 20807 | D27: 就业补助 | E27: 5,037.87 | F27: 0.00 | G27: 5,037.87
A28: 2080705 | D28: 公益性岗位补贴 | E28: 2,160.87 | F28: 0.00 | G28: 2,160.87
A29: 2080799 | D29: 其他就业补助支出 | E29: 2,877.00 | F29: 0.00 | G29: 2,877.00
A30: 20808 | D30: 抚恤 | E30: 45.03 | F30: 0.00 | G30: 45.03
A31: 2080899 | D31: 其他优抚支出 | E31: 45.03 | F31: 0.00 | G31: 45.03
A32: 20809 | D32: 退役安置 | E32: 49.37 | F32: 0.00 | G32: 49.37
A33: 2080999 | D33: 其他退役安置支出 | E33: 49.37 | F33: 0.00 | G33: 49.37
A34: 20899 | D34: 其他社会保障和就业支出 | E34: 880.29 | F34: 0.00 | G34: 880.29
A35: 2089901 | D35: 其他社会保障和就业支出 | E35: 880.29 | F35: 0.00 | G35: 880.29
A36: 210 | D36: 医疗卫生与计划生育支出 | E36: 7,684.97 | F36: 7,684.97 | G36: 0.00
A37: 21011 | D37: 行政事业单位医疗 | E37: 7,684.97 | F37: 7,684.97 | G37: 0.00
A38: 2101101 | D38: 行政单位医疗 | E38: 1,346.87 | F38: 1,346.87 | G38: 0.00
A39: 2101102 | D39: 事业单位医疗 | E39: 1,280.95 | F39: 1,280.95 | G39: 0.00
A40: 2101103 | D40: 公务员医疗补助 | E40: 5,057.16 | F40: 5,057.16 | G40: 0.00
A41: 213 | D41: 农林水支出 | E41: 37.15 | F41: 0.00 | G41: 37.15
A42: 21301 | D42: 农业 | E42: 24.76 | F42: 0.00 | G42: 24.76
A43: 2130152 | D43: 对高校毕业生到基层任职补助 | E43: 24.76 | F43: 0.00 | G43: 24.76
A44: 21308 | D44: 普惠金融发展支出 | E44: 12.39 | F44: 0.00 | G44: 12.39
A45: 2130899 | D45: 其他普惠金融发展支出 | E45: 12.39 | F45: 0.00 | G45: 12.39
A46: 注：本表反映部门本年度各项支出情况。

Sheet PF04 部门决算财政拨款收支总表
A1: 部门决算财政拨款收支总表
F2: 04表
A3: 编制单位：西安市碑林区人力资源和社会保障局（汇总） | C3: 2018年 | F3: 单位：万元
A4: 收 入 | C4: 支 出
A5: 项 目 | B5: 决算数 | C5: 项目 | D5: 决算数
D6: 合计 | E6: 一般公共预算财政拨款 | F6: 政府性基金预算财政拨款
A7: 1、一般公共预算财政拨款 | B7: 19,071.25 | C7: 1、一般公共服务支出 | D7: 658.58 | E7: 658.58
A8: 2、政府性基金预算财政拨款 | C8: 2、外交支出
A9: 3、国有资本经营预算收入 | C9: 3、国防支出
C10: 4、公共安全支出
C11: 5、教育支出
C12: 6、科学技术支出
C13: 7、文化体育与传媒支出
C14: 8、社会保障和就业支出 | D14: 9,307.22 | E14: 9,307.22
C15: 9、医疗卫生与计划生育支出 | D15: 7,684.97 | E15: 7,684.97
C16: 10、节能环保支出
C17: 11、城乡社区支出
C18: 12、农林水支出 | D18: 37.15 | E18: 37.15
C19: 13、交通运输支出
C20: 14、资源勘探信息等支出
C21: 15、商业服务业等支出
C22: 16、金融支出
C23: 17、援助其他地区支出
C24: 18、国土海洋气象等支出
C25: 19、住房保障支出
C26: 20、油物资储备支出
C27: 21、其他支出
A30: 本年收入合计 | B30: 19,071.25 | C30: 本年支出合计 | D30: =SUM(D7:D28) -> 17,687.92 | E30: =SUM(E7:E28) -> 17,687.92
A31: 年初财政拨款结转和结余 | B31: 140.69 | C31: 年末财政拨款结转和结余 | D31: 1,524.01 | E31: 1,524.01
A32: 一般公共预算财政拨款 | B32: 140.69
A33: 政府性基金预算财政拨款
A35: 收入总计 | B35: =B30+B31 -> 19,211.94 | C35: 支出总计 | D35: =D30+D31 -> 19,211.94 | E35: =E30+E31 -> 19,211.94
A36: 注：本表反映部门本年度一般公共预算财政拨款和政府性基金预算财政拨款的总收支和年末结转结余情况。

Sheet PF05 部门决算一般公共预算财政拨款支出明细表（按功能分类科
A1: 部门决算一般公共预算财政拨款支出明细表（按功能分类科目）
J2: 05表
A3: 编制单位：西安市碑林区人力资源和社会保障局（汇总） | G3: 2018年 | J3: 单位：万元
A4: 项目 | E4: 本年支出合计 | F4: 基本支出 | I4: 项目支出 | J4: 备注
A5: 功能分类科目编码 | D5: 科目名称 | F5: 小计 | G5: 人员经费 | H5: 公用经费
F6: 小计 | G6: 人员经费 | H6: 日常公用经费 | I6: 小计 | J6: 项目支出结余
A8: 合计 | D8: 合计 | E8: =SUM(E9,E12,E36,E41) -> 17,687.92 | F8: 10,281.11 | G8: 10,227.12 | H8: =H9+H12+H36+H41 -> 53.99 | I8: =I9+I12+I36+I41 -> 7,406.81
A9: 201 | D9: 一般公共服务支出 | E9: 658.58 | I9: =I10 -> 658.58
A10: 20113 | D10: 商贸事务 | E10: 658.58 | I10: =I11 -> 658.58
A11: 2011308 | D11: 招商引资 | E11: 658.58 | I11: 658.58
A12: 208 | D12: 社会保障和就业支出 | E12: 9,307.22 | F12: =G12+H12 -> 2,596.15 | G12: =G13+G20+G22+G27+G30+G32+G34 -> 2,542.16 | H12: =H13+H20+H22+H27+H30+H32+H34 -> 53.99 | I12: =I13+I20+I22+I27+I30+I32+I34 -> 6,711.08
A13: 20801 | D13: 人力资源和社会保障管理事务 | E13: 2,012.70 | F13: =G13+H13 -> 1,357.65 | G13: =SUM(G14:G19) -> 1,303.66 | H13: =SUM(H14:H19) -> 53.99 | I13: =SUM(I14:I19) -> 655.05
A14: 2080101 | D14: 行政运行 | E14: 747.62 | F14: =G14+H14 -> 747.62 | G14: 713.67 | H14: 33.95
A15: 2080102 | D15: 一般行政管理事务 | E15: 521.17 | I15: 521.17
A16: 2080108 | D16: 信息化建设 | E16: 5.00 | I16: 5.00
A17: 2080109 | D17: 社会保险经办机构 | E17: 239.00 | F17: =G17+H17 -> 124.53 | G17: 117.18 | H17: 7.35 | I17: 114.47
A18: 2080112 | D18: 劳动人事争议调解仲裁 | E18: 14.41 | I18: 14.41
A19: 2080199 | D19: 其他人力资源和社会保障管理事务支出 | E19: 485.50 | F19: =G19+H19 -> 485.50 | G19: 472.81 | H19: 12.69
A20: 20802 | D20: 民政管理事务 | E20: 9.76 | I20: =I21 -> 9.76
A21: 2080299 | D21: 其他民政管理事务支出 | E21: 9.76 | I21: 9.76
A22: 20805 | D22: 行政事业单位离退休 | E22: 1,272.21 | F22: =G22+H22 -> 1,238.50 | G22: =G23+G24+G25 -> 1,238.50 | I22: =I26 -> 33.71
A23: 2080501 | D23: 归口管理的行政单位离退休 | E23: 673.49 | F23: =G23+H23 -> 673.49 | G23: 673.49
A24: 2080502 | D24: 事业单位离退休 | E24: 439.42 | F24: =G24+H24 -> 439.42 | G24: 439.42
A25: 2080505 | D25: 机关事业单位基本养老保险缴费支出 | E25: 125.59 | F25: =G25+H25 -> 125.59 | G25: 125.59
A26: 2080599 | D26: 其他行政事业单位离退休支出 | E26: 33.71 | I26: 33.71
A27: 20807 | D27: 就业补助 | E27: 5,037.87 | I27: =I28+I29 -> 5,037.87
A28: 2080705 | D28: 公益性岗位补贴 | E28: 2,160.87 | I28: 2,160.87
A29: 2080799 | D29: 其他就业补助支出 | E29: 2,877.00 | I29: 2,877.00
A30: 20808 | D30: 抚恤 | E30: 45.03 | I30: =I31 -> 45.03
A31: 2080899 | D31: 其他优抚支出 | E31: 45.03 | I31: 45.03
A32: 20809 | D32: 退役安置 | E32: 49.37 | I32: =I33 -> 49.37
A33: 2080999 | D33: 其他退役安置支出 | E33: 49.37 | I33: 49.37
A34: 20899 | D34: 其他社会保障和就业支出 | E34: 880.29 | I34: =I35 -> 880.29
A35: 2089901 | D35: 其他社会保障和就业支出 | E35: 880.29 | I35: 880.29
A36: 210 | D36: 医疗卫生与计划生育支出 | E36: 7,684.97 | F36: =G36+H36 -> 7,684.98 | G36: =G37 -> 7,684.98
A37: 21011 | D37: 行政事业单位医疗 | E37: 7,684.97 | F37: =G37+H37 -> 7,684.98 | G37: 7,684.98
A38: 2101101 | D38: 行政单位医疗 | E38: 1,346.87 | F38: =G38+H38 -> 1,346.87 | G38: 1,346.87
A39: 2101102 | D39: 事业单位医疗 | E39: 1,280.95 | F39: =G39+H39 -> 1,280.95 | G39: 1,280.95
A40: 2101103 | D40: 公务员医疗补助 | E40: 5,057.16 | F40: =G40+H40 -> 5,057.16 | G40: 5,057.16
A41: 213 | D41: 农林水支出 | E41: 37.15 | I41: =I42+I44 -> 37.15
A42: 21301 | D42: 农业 | E42: 24.76 | I42: =I43 -> 24.76
A43: 2130152 | D43: 对高校毕业生到基层任职补助 | E43: 24.76 | I43: 24.76
A44: 21308 | D44: 普惠金融发展支出 | E44: 12.39 | I44: =I45 -> 12.39
A45: 2130899 | D45: 其他普惠金融发展支出 | E45: 12.39 | I45: 12.39
A46: 注：本表反映部门本年度一般公共预算财政拨款实际支出情况。

Sheet PF06 部门决算一般公共预算财政拨款基本支出表（按经济分类科
A1: 部门决算一般公共预算财政拨款基本支出表（按经济分类科目）
H2: 06表
A3: 编制单位：西安市碑林区人力资源和社会保障局（汇总） | F3: 2018年 | H3: 单位：万元
A4: 项目 | E4: 本年支出合计 | F4: 人员经费 | G4: 公用经费 | H4: 备注
A5: 经济分类科目编码 | D5: 科目名称
E6: 小计 | F6: 人员经费 | G6: 日常公用经费 | H6: 项目支出结余
A8: 合计 | D8: 合计 | E8: =E9+E18+E25 -> 10281.11 | F8: =F9+F18+F25 -> 10227.12 | G8: =G9+G18+G25 -> 53.99
A9: 301 | D9: 工资福利支出 | E9: 9113.58 | F9: 9113.58
A10: 30101 | D10: 基本工资 | E10: 336.79 | F10: 336.79
A11: 30102 | D11: 津贴补贴 | E11: 336.34 | F11: 336.34
A12: 30103 | D12: 奖金 | E12: 506.15 | F12: 506.15
A13: 30107 | D13: 绩效工资 | E13: 53.27 | F13: 53.27
A14: 30108 | D14: 机关事业单位基本养老保险费 | E14: 125.59 | F14: 125.59
A15: 30110 | D15: 职工基本医疗保险缴费 | E15: 2627.82 | F15: 2627.82
A16: 30111 | D16: 公务员医疗补助缴费 | E16: 5057.16 | F16: 5057.16
A17: 30113 | D17: 住房公积金 | E17: 70.48 | F17: 70.48
A18: 302 | D18: 商品和服务支出 | E18: 53.99 | G18: 53.99
A19: 30201 | D19: 办公费 | E19: 27.06 | G19: 27.06
A20: 30204 | D20: 手续费 | E20: 0.08 | G20: 0.08
A21: 30228 | D21: 工会经费 | E21: 6.64 | G21: 6.64
A22: 30231 | D22: 公务用车运行维护费 | E22: 2.51 | G22: 2.51
A23: 30239 | D23: 其他交通费用 | E23: 5.24 | G23: 5.24
A24: 30299 | D24: 其他商品和服务支出 | E24: 12.46 | G24: 12.46
A25: 303 | D25: 对个人和家庭的补助 | E25: 1113.54 | F25: 1113.54
A26: 30304 | D26: 抚恤金 | E26: 1081.21 | F26: 1081.21
A27: 30305 | D27: 生活补助 | E27: 31.70 | F27: 31.70
A28: 30309 | D28: 奖励金 | E28: 0.63 | F28: 0.63
A29: 注：本表反映部门本年度一般公共预算财政拨款基本支出明细情况。

Sheet PF07 部门决算一般公共预算财政拨款“三公”经费及会议费、培
A1: 部门决算一般公共预算财政拨款“三公”经费及会议费、培训费支出表
I2: 07表
A3: 编制单位：西安市碑林区人力资源和社会保障局（汇总） | E3: 2018年 | I3: 单位：万元
A4: 项目 | B4: 一般公共预算财政拨款安排的“三公”经费 | H4: 会议费 | I4: 培训费
B5: 小计 | C5: 因公出国（境）费用 | D5: 公务接待费 | E5: 公务用车购置及运行维护费
E6: 小计 | F6: 公务用车购置费 | G6: 公务用车运行维护费
B7: 1 | C7: 2 | D7: 3 | E7: 4 | F7: 5 | G7: 6 | H7: 7 | I7: 8
A8: 本年数 | B8: 2.51 | E8: 2.51 | G8: 2.51 | I8: 12.03
A9: 上年数 | B9: 3.32 | D9: 0.09 | E9: 3.22 | G9: 3.22 | I9: 9.98
A10: 增减额 | B10: -0.81 | D10: -0.09 | E10: -0.71 | G10: -0.71 | I10: 2.05
A11: 增减率（%） | B11: -24.40% | D11: -100.00% | E11: -22.05% | G11: -22.05% | I11: 20.54%
A12: 1.因公出国（境）团组情况：2018年度本单位组织出国(境)团组0个；参加其他单位组织的出国(境)团组0个； 本单位全年因公出国(境)累计0人次。
A13: 2.公务用车购置及保有情况：2018年度本单位购置公务用车0辆；年末公务用车保有量6辆。
A14: 3.公务接待有关情况：2018年度公务接待累计0批次 ，公务接待累计0人 。
A15: 4、会议费有关情况：2018年度会议累计0批次 ，参会人数累计0人 。
A16: 注：本表反映部门本年度一般公共预算财政拨款“三公”经费、会议费、培训费的实际支出。

Sheet PF08 部门决算政府性基金收支表
A1: 部门决算政府性基金收支表
J2: 08表
A3: 编制单位：西安市碑林区人力资源和社会保障局（汇总） | F3: 2018年 | J3: 单位：万元
A4: 项目 | E4: 年初结转和结余 | F4: 本年收入 | G4: 本年支出 | J4: 年末结转和结余
A5: 功能分类科目编码 | D5: 科目名称 | G5: 小计 | H5: 基本支出 | I5: 项目支出
H6: 小计 | I6: 小计 | J6: 项目支出结余
A8: 合计 | D8: 合计
A26: 注：本表反映部门本年度政府性基金预算财政拨款收入支出及结转和结余情况。

Sheet PF09 政府采购决算表
C1: 政府采购决算表
E2: 09表
A3: 编制单位：西安市碑林区人力资源和社会保障局（汇总） | C3: 2018年 | E3: 金额单位：万元
A4: 项目 | B4: 行次 | C4: 采购金额（决算数）
C5: 总计 | D5: 财政性资金 | E5: 其他资金
A6: 栏次 | C6: 1 | D6: 2 | E6: 3
A7: 合 计 | B7: 1 | C7: =SUM(C8:C10) -> 564.97 | D7: =SUM(D8:D10) -> 564.97
A8: 货物 | B8: 2 | C8: 80.82 | D8: 80.82
A9: 工程 | B9: 3
A10: 服务 | B10: 4 | C10: 484.14 | D10: 484.14
